[Event "Early-Titled-Tuesday-Blitz-September-12-2023"]
[Site "Chess.com"]
[Date "2023.09.12"]
[Round "7"]
[White "Smiechu"]
[Black "PLAYER_2006_M"]
[Result "0-1"]
[WhiteElo "2481"]
[BlackElo "2877"]
[TimeControl "180+1"]
[EndTime "9:17:27 PDT"]
[Termination "PLAYER_2006_M won by resignation"]

1. e4 {[%clk 0:03:00.9]} 1... e5 {[%clk 0:02:59.8]} 2. Nf3 {[%clk 0:03:00.7]}
2... Nc6 {[%clk 0:03:00.5]} 3. d4 {[%clk 0:03:00.9]} 3... exd4 {[%clk
0:03:00.3]} 4. Nxd4 {[%clk 0:03:01.6]} 4... Qf6 {[%clk 0:03:00.8]} 5. Nxc6
{[%clk 0:02:56.5]} 5... Bc5 {[%clk 0:03:00.3]} 6. Qe2 {[%clk 0:02:53.3]} 6...
bxc6 {[%clk 0:02:57.4]} 7. Nc3 {[%clk 0:02:53]} 7... Ne7 {[%clk 0:02:52.2]} 8.
Be3 {[%clk 0:02:48.8]} 8... Bb6 {[%clk 0:02:49.4]} 9. Bxb6 {[%clk 0:02:41.7]}
9... axb6 {[%clk 0:02:49.1]} 10. Qe3 {[%clk 0:02:41.3]} 10... d6 {[%clk
0:02:44.8]} 11. Bd3 {[%clk 0:02:39.6]} 11... Ng6 {[%clk 0:02:36.3]} 12. O-O
{[%clk 0:02:34.3]} 12... Qf4 {[%clk 0:02:33.3]} 13. Qd4 {[%clk 0:02:19.2]} 13...
O-O {[%clk 0:02:18.5]} 14. Ne2 {[%clk 0:02:17.4]} 14... Qe5 {[%clk 0:01:56.3]}
15. f4 {[%clk 0:02:13.6]} 15... Qxd4+ {[%clk 0:01:53.2]} 16. Nxd4 {[%clk
0:02:13.6]} 16... Bd7 {[%clk 0:01:48.3]} 17. a3 {[%clk 0:01:45.8]} 17... Ra4
{[%clk 0:01:46.9]} 18. Ne2 {[%clk 0:01:38.7]} 18... f5 {[%clk 0:01:22.6]} 19.
Nc3 {[%clk 0:01:30.6]} 19... Rd4 {[%clk 0:01:16.4]} 20. Ne2 {[%clk 0:01:25.6]}
20... Ra4 {[%clk 0:01:10.5]} 21. Nc3 {[%clk 0:01:25.6]} 21... Raa8 {[%clk
0:01:04.4]} 22. exf5 {[%clk 0:01:01.4]} 22... Bxf5 {[%clk 0:01:04.4]} 23. Bxf5
{[%clk 0:01:01.8]} 23... Rxf5 {[%clk 0:01:05.3]} 24. g3 {[%clk 0:01:02.5]} 24...
Rf7 {[%clk 0:00:42]} 25. Rfe1 {[%clk 0:01:00.8]} 25... Ne7 {[%clk 0:00:41.9]}
26. Re2 {[%clk 0:00:58.7]} 26... Nf5 {[%clk 0:00:41.5]} 27. Rd1 {[%clk
0:00:51.3]} 27... d5 {[%clk 0:00:41.9]} 28. Re6 {[%clk 0:00:45.2]} 28... Rf6
{[%clk 0:00:42.3]} 29. Rxf6 {[%clk 0:00:39.9]} 29... gxf6 {[%clk 0:00:43.2]} 30.
Ne2 {[%clk 0:00:38.2]} 30... Re8 {[%clk 0:00:42.6]} 31. Kf2 {[%clk 0:00:27.5]}
31... Ne3 {[%clk 0:00:42.9]} 32. Rd2 {[%clk 0:00:26.4]} 32... Nc4 {[%clk
0:00:42.7]} 33. Rd3 {[%clk 0:00:18.6]} 33... Nxb2 {[%clk 0:00:43]} 34. Nd4
{[%clk 0:00:15.3]} 34... Nxd3+ {[%clk 0:00:42.9]} 0-1

[Event "Early-Titled-Tuesday-Blitz-September-12-2023"]
[Site "Chess.com"]
[Date "2023.09.12"]
[Round "7"]
[White "RamonManon0g"]
[Black "Jackalhead_Anubis"]
[Result "0-1"]
[WhiteElo "2295"]
[BlackElo "2378"]
[TimeControl "180+1"]
[EndTime "9:17:33 PDT"]
[Termination "Jackalhead_Anubis won by checkmate"]

1. e4 {[%clk 0:02:56.1]} 1... c5 {[%clk 0:02:58.5]} 2. Nf3 {[%clk 0:02:55.9]}
2... d6 {[%clk 0:02:59.1]} 3. Bb5+ {[%clk 0:02:55.6]} 3... Nd7 {[%clk
0:02:58.4]} 4. a4 {[%clk 0:02:55.6]} 4... Nf6 {[%clk 0:02:56.5]} 5. Nc3 {[%clk
0:02:55.5]} 5... g6 {[%clk 0:02:55.7]} 6. O-O {[%clk 0:02:55.4]} 6... Bg7 {[%clk
0:02:55.3]} 7. d4 {[%clk 0:02:50.8]} 7... cxd4 {[%clk 0:02:54.1]} 8. Nxd4 {[%clk
0:02:51.7]} 8... a6 {[%clk 0:02:54]} 9. Bc4 {[%clk 0:02:49.3]} 9... O-O {[%clk
0:02:53.5]} 10. Be3 {[%clk 0:02:45.2]} 10... Qc7 {[%clk 0:02:49.5]} 11. Bb3
{[%clk 0:02:45.2]} 11... Nc5 {[%clk 0:02:46.5]} 12. Nd5 {[%clk 0:02:40.7]} 12...
Nxd5 {[%clk 0:02:44.9]} 13. exd5 {[%clk 0:02:34.9]} 13... Nxb3 {[%clk
0:02:44.7]} 14. cxb3 {[%clk 0:02:31.9]} 14... Qa5 {[%clk 0:02:35.7]} 15. Qf3
{[%clk 0:02:08.3]} 15... Qb4 {[%clk 0:02:33.8]} 16. Rfd1 {[%clk 0:02:05.3]}
16... h5 {[%clk 0:02:29.7]} 17. h3 {[%clk 0:02:04.9]} 17... Bd7 {[%clk
0:02:27.3]} 18. Qe4 {[%clk 0:02:01.9]} 18... Rfe8 {[%clk 0:02:18.8]} 19. Rac1
{[%clk 0:02:01.3]} 19... Rac8 {[%clk 0:02:05.1]} 20. Rxc8 {[%clk 0:01:54.4]}
20... Bxc8 {[%clk 0:02:05.2]} 21. Rc1 {[%clk 0:01:53.5]} 21... Bf5 {[%clk
0:02:03.5]} 22. Qf4 {[%clk 0:01:48.7]} 22... Be5 {[%clk 0:01:51.7]} 23. Qh4
{[%clk 0:01:45.6]} 23... Bd3 {[%clk 0:01:08.9]} 24. Rc7 {[%clk 0:01:10.2]} 24...
Bf6 {[%clk 0:01:06]} 25. Qf4 {[%clk 0:01:10.3]} 25... g5 {[%clk 0:00:59.2]} 26.
Qg3 {[%clk 0:00:41.4]} 26... Bxd4 {[%clk 0:00:43.4]} 27. Bxg5 {[%clk 0:00:32]}
27... Qe1+ {[%clk 0:00:37.6]} 28. Kh2 {[%clk 0:00:32.4]} 28... Qxf2 {[%clk
0:00:33.1]} 29. Qxd3 {[%clk 0:00:21]} 29... Be5+ {[%clk 0:00:32.2]} 30. Kh1
{[%clk 0:00:06.9]} 30... Qe1+ {[%clk 0:00:32.2]} 31. Qf1 {[%clk 0:00:07.3]}
31... Qxf1# {[%clk 0:00:32.8]} 0-1

[Event "Early-Titled-Tuesday-Blitz-September-12-2023"]
[Site "Chess.com"]
[Date "2023.09.12"]
[Round "7"]
[White "Biregina"]
[Black "CixPer1968"]
[Result "1-0"]
[WhiteElo "2437"]
[BlackElo "2193"]
[TimeControl "180+1"]
[EndTime "9:17:36 PDT"]
[Termination "Biregina won on time"]

1. d4 {[%clk 0:03:00.9]} 1... Nf6 {[%clk 0:02:50.5]} 2. c4 {[%clk 0:02:59.2]}
2... e6 {[%clk 0:02:50.4]} 3. Nc3 {[%clk 0:02:59.7]} 3... Bb4 {[%clk 0:02:50.4]}
4. g3 {[%clk 0:03:00.5]} 4... Bxc3+ {[%clk 0:02:45]} 5. bxc3 {[%clk 0:02:59.8]}
5... O-O {[%clk 0:02:45.5]} 6. Bg2 {[%clk 0:03:00.4]} 6... d6 {[%clk 0:02:45.7]}
7. e4 {[%clk 0:03:00.6]} 7... e5 {[%clk 0:02:45.3]} 8. Ne2 {[%clk 0:03:00.7]}
8... Nc6 {[%clk 0:02:44.9]} 9. O-O {[%clk 0:03:01.2]} 9... Re8 {[%clk
0:02:39.1]} 10. f3 {[%clk 0:03:01.2]} 10... Qe7 {[%clk 0:02:34]} 11. Be3 {[%clk
0:03:01.3]} 11... b6 {[%clk 0:02:32.3]} 12. Re1 {[%clk 0:02:33.9]} 12... Na5
{[%clk 0:02:20.1]} 13. c5 {[%clk 0:02:19.9]} 13... Nc4 {[%clk 0:02:16.9]} 14.
Bf2 {[%clk 0:02:17.9]} 14... Bb7 {[%clk 0:02:06.6]} 15. Qa4 {[%clk 0:02:07.7]}
15... d5 {[%clk 0:01:56.1]} 16. c6 {[%clk 0:01:59.1]} 16... Bc8 {[%clk
0:01:40.4]} 17. exd5 {[%clk 0:01:59]} 17... Nd6 {[%clk 0:00:47.2]} 18. dxe5
{[%clk 0:01:56.2]} 18... Qxe5 {[%clk 0:00:45.2]} 19. Nf4 {[%clk 0:01:56.3]}
19... Qxc3 {[%clk 0:00:39.8]} 20. Rxe8+ {[%clk 0:01:53.2]} 20... Ndxe8 {[%clk
0:00:32.5]} 21. Re1 {[%clk 0:01:51.5]} 21... Bf5 {[%clk 0:00:20.6]} 22. Qd4
{[%clk 0:01:41.3]} 22... Qxd4 {[%clk 0:00:17.3]} 23. Bxd4 {[%clk 0:01:42.2]}
23... Nd6 {[%clk 0:00:14.1]} 24. g4 {[%clk 0:01:40.9]} 24... Bg6 {[%clk
0:00:11]} 25. h4 {[%clk 0:01:24.8]} 25... h6 {[%clk 0:00:06.4]} 26. Re7 {[%clk
0:01:01.8]} 26... Kf8 {[%clk 0:00:05.2]} 27. Bxf6 {[%clk 0:00:57.5]} 27... gxf6
{[%clk 0:00:04.5]} 28. Rxc7 {[%clk 0:00:55.3]} 28... a5 {[%clk 0:00:03.5]} 29.
Bf1 {[%clk 0:00:38.1]} 29... b5 {[%clk 0:00:02.1]} 30. Nxg6+ {[%clk 0:00:34.4]}
30... fxg6 {[%clk 0:00:01.8]} 31. Rh7 {[%clk 0:00:34.4]} 31... b4 {[%clk
0:00:01.1]} 32. Rh8+ {[%clk 0:00:33.8]} 1-0

[Event "Early-Titled-Tuesday-Blitz-September-12-2023"]
[Site "Chess.com"]
[Date "2023.09.12"]
[Round "7"]
[White "allejam"]
[Black "APOKALIPSA13"]
[Result "0-1"]
[WhiteElo "2428"]
[BlackElo "2277"]
[TimeControl "180+1"]
[EndTime "9:17:38 PDT"]
[Termination "APOKALIPSA13 won by resignation"]

1. e4 {[%clk 0:02:55.4]} 1... e5 {[%clk 0:03:00.1]} 2. Nf3 {[%clk 0:02:55.4]}
2... d5 {[%clk 0:03:00.7]} 3. d4 {[%clk 0:02:50.7]} 3... dxe4 {[%clk 0:03:00.7]}
4. Nxe5 {[%clk 0:02:50.9]} 4... Bd6 {[%clk 0:03:01.3]} 5. Nc4 {[%clk 0:02:47.6]}
5... Nf6 {[%clk 0:03:01]} 6. Be2 {[%clk 0:02:47]} 6... O-O {[%clk 0:03:01.2]} 7.
Nc3 {[%clk 0:02:44.3]} 7... Be7 {[%clk 0:02:58.8]} 8. O-O {[%clk 0:02:43.7]}
8... c6 {[%clk 0:02:58.9]} 9. f3 {[%clk 0:02:43.6]} 9... exf3 {[%clk 0:02:58.1]}
10. Bxf3 {[%clk 0:02:43.4]} 10... Be6 {[%clk 0:02:58.4]} 11. Ne5 {[%clk
0:02:42.6]} 11... Nbd7 {[%clk 0:02:53.8]} 12. Qe2 {[%clk 0:02:36.8]} 12... Nxe5
{[%clk 0:02:53]} 13. dxe5 {[%clk 0:02:35.9]} 13... Nd5 {[%clk 0:02:46.4]} 14.
Ne4 {[%clk 0:02:32.5]} 14... Qb6+ {[%clk 0:02:44]} 15. Kh1 {[%clk 0:02:31.1]}
15... Rad8 {[%clk 0:02:41.6]} 16. a3 {[%clk 0:02:10.3]} 16... Qd4 {[%clk
0:02:34.8]} 17. Ng5 {[%clk 0:02:00.4]} 17... Nf4 {[%clk 0:02:11.3]} 18. Bxf4
{[%clk 0:01:56.5]} 18... Qxf4 {[%clk 0:02:10.3]} 19. Nxe6 {[%clk 0:01:39.8]}
19... fxe6 {[%clk 0:02:11.2]} 20. Bg4 {[%clk 0:01:39.3]} 20... Qh6 {[%clk
0:02:11.1]} 21. Rxf8+ {[%clk 0:01:23.7]} 21... Rxf8 {[%clk 0:02:12]} 22. Qc4
{[%clk 0:01:19.6]} 22... Rf4 {[%clk 0:01:58.7]} 23. Qxe6+ {[%clk 0:00:57.9]}
23... Qxe6 {[%clk 0:01:54]} 24. Bxe6+ {[%clk 0:00:58.8]} 24... Kf8 {[%clk
0:01:54.2]} 25. Bb3 {[%clk 0:00:28.8]} 25... Bc5 {[%clk 0:01:48.5]} 26. Rd1
{[%clk 0:00:24.6]} 26... Ke7 {[%clk 0:01:46.8]} 27. e6 {[%clk 0:00:23.6]} 27...
Bd6 {[%clk 0:01:46.7]} 28. g3 {[%clk 0:00:20.6]} 28... Rf2 {[%clk 0:01:43.3]}
29. Kg1 {[%clk 0:00:21]} 29... Re2 {[%clk 0:01:42.7]} 30. Rf1 {[%clk 0:00:21.6]}
30... Bc5+ {[%clk 0:01:33.4]} 31. Kh1 {[%clk 0:00:21.8]} 31... Bd4 {[%clk
0:01:30.6]} 32. Rf7+ {[%clk 0:00:21.4]} 32... Ke8 {[%clk 0:01:28.5]} 33. Rxb7
{[%clk 0:00:21.6]} 33... g5 {[%clk 0:01:25.1]} 34. g4 {[%clk 0:00:21]} 34... h5
{[%clk 0:01:19.5]} 35. Ba4 {[%clk 0:00:21]} 35... Rxe6 {[%clk 0:01:12.7]} 36.
Rc7 {[%clk 0:00:18.8]} 36... Re1+ {[%clk 0:01:11]} 37. Kg2 {[%clk 0:00:18.7]}
37... Re2+ {[%clk 0:01:11.1]} 38. Kf3 {[%clk 0:00:18.8]} 38... Re3+ {[%clk
0:01:10.6]} 39. Kg2 {[%clk 0:00:18.6]} 39... hxg4 {[%clk 0:01:06.6]} 40. Bxc6+
{[%clk 0:00:17.7]} 40... Kf8 {[%clk 0:01:05.1]} 41. c3 {[%clk 0:00:17.9]} 41...
Re2+ {[%clk 0:01:03.3]} 42. Kf1 {[%clk 0:00:17.1]} 42... Rf2+ {[%clk 0:01:03.6]}
43. Ke1 {[%clk 0:00:17.5]} 43... Bb6 {[%clk 0:01:03.9]} 44. Rb7 {[%clk
0:00:17.2]} 44... Rxb2 {[%clk 0:01:03.3]} 45. Bd7 {[%clk 0:00:16.3]} 45... Bf2+
{[%clk 0:01:01.3]} 46. Kd1 {[%clk 0:00:16]} 46... Rxb7 {[%clk 0:01:01.9]} 47.
Bxg4 {[%clk 0:00:13.8]} 47... Rb2 {[%clk 0:00:59.4]} 0-1

[Event "Early-Titled-Tuesday-Blitz-September-12-2023"]
[Site "Chess.com"]
[Date "2023.09.12"]
[Round "7"]
[White "nss13"]
[Black "Quattroporte300"]
[Result "1-0"]
[WhiteElo "2552"]
[BlackElo "2399"]
[TimeControl "180+1"]
[EndTime "9:17:39 PDT"]
[Termination "nss13 won by resignation"]

1. e4 {[%clk 0:03:00.9]} 1... c5 {[%clk 0:02:59.1]} 2. Nf3 {[%clk 0:03:00.8]}
2... Nc6 {[%clk 0:02:57.9]} 3. Bb5 {[%clk 0:03:01.1]} 3... g6 {[%clk 0:02:57.4]}
4. Bxc6 {[%clk 0:03:01.4]} 4... bxc6 {[%clk 0:02:56.9]} 5. O-O {[%clk
0:03:01.1]} 5... Bg7 {[%clk 0:02:57.4]} 6. Re1 {[%clk 0:03:01.4]} 6... d6 {[%clk
0:02:57.4]} 7. c3 {[%clk 0:03:01.9]} 7... e5 {[%clk 0:02:56.7]} 8. d4 {[%clk
0:03:02.1]} 8... cxd4 {[%clk 0:02:55.7]} 9. cxd4 {[%clk 0:03:03]} 9... exd4
{[%clk 0:02:54.8]} 10. Nxd4 {[%clk 0:03:02.9]} 10... Ne7 {[%clk 0:02:54.7]} 11.
Nc3 {[%clk 0:03:02.9]} 11... O-O {[%clk 0:02:54.4]} 12. Bf4 {[%clk 0:03:00.7]}
12... d5 {[%clk 0:02:11.6]} 13. Nb3 {[%clk 0:02:50.9]} 13... Be6 {[%clk
0:01:25]} 14. Qd2 {[%clk 0:02:46.6]} 14... d4 {[%clk 0:01:20.9]} 15. Na4 {[%clk
0:02:42.1]} 15... Rc8 {[%clk 0:00:45.2]} 16. Nac5 {[%clk 0:02:40.3]} 16... Qb6
{[%clk 0:00:40.5]} 17. Rac1 {[%clk 0:02:14.5]} 17... Rfd8 {[%clk 0:00:37.9]} 18.
Bg5 {[%clk 0:02:08.3]} 18... Rc7 {[%clk 0:00:36.7]} 19. Qf4 {[%clk 0:01:52.3]}
19... Bxb3 {[%clk 0:00:24.8]} 20. axb3 {[%clk 0:01:53.2]} 20... d3 {[%clk
0:00:22.1]} 21. Rcd1 {[%clk 0:01:17.4]} 21... Bxb2 {[%clk 0:00:20.4]} 22. Nxd3
{[%clk 0:01:05.1]} 22... Bd4 {[%clk 0:00:20.4]} 23. b4 {[%clk 0:00:55.8]} 23...
Rcd7 {[%clk 0:00:20.6]} 24. g3 {[%clk 0:00:36.7]} 24... Kf8 {[%clk 0:00:12]} 25.
Bf6 {[%clk 0:00:31.8]} 25... Bxf6 {[%clk 0:00:11.6]} 26. Qxf6 {[%clk 0:00:32.7]}
26... Qd4 {[%clk 0:00:11]} 27. Ne5 {[%clk 0:00:25]} 27... Ng8 {[%clk 0:00:10.1]}
28. Nxd7+ {[%clk 0:00:20.2]} 28... Rxd7 {[%clk 0:00:06.9]} 29. Qxd4 {[%clk
0:00:19.9]} 1-0

[Event "Early-Titled-Tuesday-Blitz-September-12-2023"]
[Site "Chess.com"]
[Date "2023.09.12"]
[Round "7"]
[White "Byniolus"]
[Black "arminmusovic"]
[Result "1-0"]
[WhiteElo "2793"]
[BlackElo "2564"]
[TimeControl "180+1"]
[EndTime "9:17:42 PDT"]
[Termination "Byniolus won by resignation"]

1. d4 {[%clk 0:02:59.1]} 1... d5 {[%clk 0:02:58.9]} 2. Bf4 {[%clk 0:02:58.3]}
2... c5 {[%clk 0:02:58.8]} 3. c3 {[%clk 0:02:58.1]} 3... Nc6 {[%clk 0:02:55.6]}
4. e3 {[%clk 0:02:57.7]} 4... cxd4 {[%clk 0:02:56.2]} 5. cxd4 {[%clk 0:02:56.8]}
5... a6 {[%clk 0:02:54]} 6. Nc3 {[%clk 0:02:56.4]} 6... Nf6 {[%clk 0:02:53.3]}
7. Bd3 {[%clk 0:02:55.3]} 7... g6 {[%clk 0:02:52.6]} 8. Nf3 {[%clk 0:02:55.4]}
8... Bg7 {[%clk 0:02:53.3]} 9. h3 {[%clk 0:02:55.8]} 9... O-O {[%clk 0:02:54]}
10. Rc1 {[%clk 0:02:56.3]} 10... Re8 {[%clk 0:02:54.4]} 11. a3 {[%clk
0:02:56.2]} 11... e6 {[%clk 0:02:54.9]} 12. O-O {[%clk 0:02:54.9]} 12... Nd7
{[%clk 0:02:55.4]} 13. Bh2 {[%clk 0:02:54.2]} 13... Nf8 {[%clk 0:02:49.7]} 14.
b4 {[%clk 0:02:44]} 14... e5 {[%clk 0:02:40.6]} 15. dxe5 {[%clk 0:02:40.8]}
15... Nxe5 {[%clk 0:02:41.5]} 16. Be2 {[%clk 0:02:35.8]} 16... Nc4 {[%clk
0:02:37.5]} 17. Nxd5 {[%clk 0:02:32.2]} 17... Nb2 {[%clk 0:02:28.7]} 18. Qd2
{[%clk 0:02:15.9]} 18... Ne6 {[%clk 0:02:20]} 19. Rfd1 {[%clk 0:02:05.7]} 19...
Nxd1 {[%clk 0:02:17.8]} 20. Rxd1 {[%clk 0:02:01]} 20... Bd7 {[%clk 0:01:49.1]}
21. Qc2 {[%clk 0:01:29.8]} 21... Rc8 {[%clk 0:01:28.5]} 22. Qb3 {[%clk 0:01:30]}
22... b5 {[%clk 0:01:10.7]} 23. Bg3 {[%clk 0:01:22.2]} 23... h6 {[%clk
0:01:09.4]} 24. Ne5 {[%clk 0:01:17.8]} 24... Nc5 {[%clk 0:00:55.8]} 25. bxc5
{[%clk 0:01:17.8]} 25... Bxe5 {[%clk 0:00:55.8]} 26. Bxe5 {[%clk 0:01:15.2]}
26... Rxe5 {[%clk 0:00:56.7]} 27. Nb6 {[%clk 0:01:05.4]} 27... Rexc5 {[%clk
0:00:40]} 28. Rxd7 {[%clk 0:00:58.4]} 28... Rc1+ {[%clk 0:00:36.7]} 29. Kh2
{[%clk 0:00:58.7]} 29... Qf6 {[%clk 0:00:33.6]} 30. Nxc8 {[%clk 0:00:55.8]}
30... Qxf2 {[%clk 0:00:20.1]} 31. Ne7+ {[%clk 0:00:47.5]} 31... Kf8 {[%clk
0:00:20.7]} 32. Bd1 {[%clk 0:00:48.1]} 32... Qf6 {[%clk 0:00:13.1]} 33. Nd5
{[%clk 0:00:38.5]} 33... Qe5+ {[%clk 0:00:12.1]} 34. Kg1 {[%clk 0:00:37.8]}
34... Qh5 {[%clk 0:00:05.6]} 35. Rd8+ {[%clk 0:00:33.7]} 35... Kg7 {[%clk
0:00:05.5]} 36. Qb2+ {[%clk 0:00:34.5]} 36... f6 {[%clk 0:00:03.8]} 37. Qxf6+
{[%clk 0:00:34.3]} 1-0

[Event "Early-Titled-Tuesday-Blitz-September-12-2023"]
[Site "Chess.com"]
[Date "2023.09.12"]
[Round "7"]
[White "Zarinur"]
[Black "grzechu96"]
[Result "1-0"]
[WhiteElo "2513"]
[BlackElo "2648"]
[TimeControl "180+1"]
[EndTime "9:17:42 PDT"]
[Termination "Zarinur won by resignation"]

1. e4 {[%clk 0:03:00.9]} 1... c5 {[%clk 0:02:57.7]} 2. Nf3 {[%clk 0:02:59.4]}
2... d6 {[%clk 0:02:56.8]} 3. Bb5+ {[%clk 0:02:58.2]} 3... Nd7 {[%clk
0:02:45.9]} 4. O-O {[%clk 0:02:56.4]} 4... a6 {[%clk 0:02:43.7]} 5. Bxd7+ {[%clk
0:02:49.4]} 5... Bxd7 {[%clk 0:02:44.6]} 6. d4 {[%clk 0:02:49.2]} 6... cxd4
{[%clk 0:02:44.8]} 7. Qxd4 {[%clk 0:02:50.1]} 7... h6 {[%clk 0:02:39.4]} 8. c4
{[%clk 0:02:46.1]} 8... e5 {[%clk 0:02:38.9]} 9. Qd3 {[%clk 0:02:45.9]} 9... Nf6
{[%clk 0:02:38.3]} 10. Nc3 {[%clk 0:02:43.3]} 10... Rc8 {[%clk 0:02:38.5]} 11.
b3 {[%clk 0:02:41]} 11... Be7 {[%clk 0:02:34.2]} 12. a4 {[%clk 0:02:37.3]} 12...
O-O {[%clk 0:02:27.9]} 13. Ba3 {[%clk 0:02:29.2]} 13... Be6 {[%clk 0:02:15.6]}
14. Rfd1 {[%clk 0:02:25.7]} 14... Rc6 {[%clk 0:02:06.9]} 15. Nxe5 {[%clk
0:02:16.2]} 15... Rb6 {[%clk 0:01:03.6]} 16. Nf3 {[%clk 0:01:49.5]} 16... Rxb3
{[%clk 0:00:59.3]} 17. Nd4 {[%clk 0:01:49.4]} 17... Nxe4 {[%clk 0:00:03.3]} 18.
Nxb3 {[%clk 0:01:43.5]} 18... Nxc3 {[%clk 0:00:01.4]} 19. Qxc3 {[%clk
0:01:38.5]} 19... Bf6 {[%clk 0:00:01.7]} 20. Nd4 {[%clk 0:01:33.1]} 20... Qc7
{[%clk 0:00:02.2]} 21. Rac1 {[%clk 0:01:19.6]} 21... Rd8 {[%clk 0:00:02.1]} 22.
Qb3 {[%clk 0:01:11.1]} 22... Bc8 {[%clk 0:00:02.2]} 23. h3 {[%clk 0:01:08.1]}
23... b6 {[%clk 0:00:02.7]} 24. Ne2 {[%clk 0:00:56.9]} 24... Bb7 {[%clk
0:00:01.9]} 25. Nc3 {[%clk 0:00:36]} 25... Bxc3 {[%clk 0:00:01.2]} 26. Qxc3
{[%clk 0:00:33.8]} 26... Qc6 {[%clk 0:00:01.7]} 27. Qg3 {[%clk 0:00:32]} 27...
Qxa4 {[%clk 0:00:01.7]} 28. Bb2 {[%clk 0:00:31.3]} 28... g6 {[%clk 0:00:01.5]}
29. Qc3 {[%clk 0:00:30.7]} 29... Kf8 {[%clk 0:00:01.8]} 30. Qh8+ {[%clk
0:00:30.5]} 30... Ke7 {[%clk 0:00:02.3]} 31. Bf6+ {[%clk 0:00:30.9]} 31... Ke6
{[%clk 0:00:02.9]} 32. Qxd8 {[%clk 0:00:30.1]} 32... Qc6 {[%clk 0:00:03.5]} 33.
Qe7+ {[%clk 0:00:30.6]} 33... Kf5 {[%clk 0:00:04.2]} 34. g4+ {[%clk 0:00:30.2]}
1-0

[Event "Early-Titled-Tuesday-Blitz-September-12-2023"]
[Site "Chess.com"]
[Date "2023.09.12"]
[Round "7"]
[White "Zheenbekov86"]
[Black "chess123456s"]
[Result "0-1"]
[WhiteElo "2403"]
[BlackElo "2616"]
[TimeControl "180+1"]
[EndTime "9:17:42 PDT"]
[Termination "chess123456s won on time"]

1. e4 {[%clk 0:01:10.5]} 1... e5 {[%clk 0:02:57.6]} 2. Nf3 {[%clk 0:01:10.6]}
2... Nc6 {[%clk 0:02:58]} 3. Bb5 {[%clk 0:01:10.4]} 3... a6 {[%clk 0:02:58.3]}
4. Ba4 {[%clk 0:01:09.9]} 4... Nf6 {[%clk 0:02:59]} 5. O-O {[%clk 0:01:09.3]}
5... Be7 {[%clk 0:02:59.6]} 6. Re1 {[%clk 0:01:07.7]} 6... b5 {[%clk 0:03:00.2]}
7. Bb3 {[%clk 0:01:06.9]} 7... O-O {[%clk 0:03:01.1]} 8. h3 {[%clk 0:00:48.5]}
8... Bb7 {[%clk 0:03:00.7]} 9. d3 {[%clk 0:00:46.8]} 9... d5 {[%clk 0:03:00.4]}
10. exd5 {[%clk 0:00:46.7]} 10... Nxd5 {[%clk 0:03:01.3]} 11. Nxe5 {[%clk
0:00:47]} 11... Nxe5 {[%clk 0:03:02.2]} 12. Rxe5 {[%clk 0:00:47.1]} 12... Qd6
{[%clk 0:03:02.8]} 13. Re1 {[%clk 0:00:46.7]} 13... Rae8 {[%clk 0:03:03.3]} 14.
Bd2 {[%clk 0:00:44.8]} 14... Nf4 {[%clk 0:02:51.1]} 15. Bxf4 {[%clk 0:00:44.2]}
15... Qxf4 {[%clk 0:02:52]} 16. Nd2 {[%clk 0:00:44.2]} 16... Bd6 {[%clk
0:02:29.2]} 17. g3 {[%clk 0:00:40.7]} 17... Qd4 {[%clk 0:02:10.8]} 18. Nf3
{[%clk 0:00:32.8]} 18... Rxe1+ {[%clk 0:02:05.3]} 19. Nxe1 {[%clk 0:00:29.2]}
19... Bxg3 {[%clk 0:02:03.7]} 20. Qe2 {[%clk 0:00:27.6]} 20... Bd6 {[%clk
0:01:56.6]} 21. Ng2 {[%clk 0:00:26.3]} 21... Qxb2 {[%clk 0:01:53.6]} 22. Re1
{[%clk 0:00:25.5]} 22... Qf6 {[%clk 0:01:51.6]} 23. Qg4 {[%clk 0:00:24.4]} 23...
h6 {[%clk 0:01:49.5]} 24. Ne3 {[%clk 0:00:22.3]} 24... Qe5 {[%clk 0:01:45.2]}
25. d4 {[%clk 0:00:12.6]} 25... Qh2+ {[%clk 0:01:43.2]} 26. Kf1 {[%clk
0:00:12.8]} 26... Bb4 {[%clk 0:01:39.3]} 27. Rd1 {[%clk 0:00:12]} 27... Re8
{[%clk 0:01:36.5]} 28. Ke2 {[%clk 0:00:10.9]} 28... Qg2 {[%clk 0:01:12.6]} 29.
Rg1 {[%clk 0:00:09.4]} 29... Qxg4+ {[%clk 0:01:10]} 30. Rxg4 {[%clk 0:00:09.1]}
30... a5 {[%clk 0:01:05.6]} 31. Rf4 {[%clk 0:00:07.8]} 31... Re7 {[%clk
0:01:03.5]} 32. Kf1 {[%clk 0:00:05.8]} 32... c6 {[%clk 0:00:53.2]} 33. Nf5
{[%clk 0:00:05.2]} 33... Re1+ {[%clk 0:00:48.3]} 34. Kg2 {[%clk 0:00:04.4]}
34... c5+ {[%clk 0:00:44.4]} 35. Kh2 {[%clk 0:00:04.4]} 35... c4 {[%clk
0:00:43.8]} 0-1